fUST/lending_fUST_20240120
["ID","MTS","AMOUNT","RATE_DAILY","PERIOD"]
[312289540,1705745438695,-500.0,0.00027999,2]
[312289542,1705745438705,-500.0,0.00027999,2]
[312289544,1705745438715,-216.16594917,0.00027999,2]
[312289546,1705745438725,-500.0,0.00027999,2]
[312289548,1705745438735,-500.0,0.00027999,2]
[312289550,1705745438744,-220.1100652,0.00027999,2]
[312289552,1705745438757,-500.0,0.00027999,2]
[312289554,1705745438766,-500.0,0.00027999,2]
[312289556,1705745438775,-500.0,0.00027999,2]
[312289558,1705745438784,-500.0,0.00027999,2]
[312289560,1705745438794,-379.68014129,0.00027999,2]
[312289562,1705745438803,-500.0,0.00027999,2]
[312289564,1705745438812,-500.0,0.00027999,2]
[312289566,1705745438821,-500.0,0.00027999,2]
[312289568,1705745438830,-500.0,0.00027999,2]
[312289570,1705745438840,-188.50754412,0.00028,3]
[312289572,1705745438849,-4117.14427366,0.00028,2]
[312289574,1705745438858,-305.59076867,0.00028,2]
[312289576,1705745438867,-290.16476431,0.00028,2]
[312289578,1705745438876,-54799.61966711,0.00028,2]
[312289580,1705745438885,-500.0,0.00028,2]
[312289582,1705745438894,-150.0,0.00028219,2]
[312289584,1705745438904,-475.68781302,0.00028699,2]
[312289586,1705745438913,-381.47122728,0.00028699,4]
[312289588,1705745438922,-500.0,0.00028699,4]
[312289590,1705745438931,-486.31791544,0.00028699,4]
[312289592,1705745438941,-436.74078263,0.00028699,4]
[312289594,1705745438950,-183.63660889,0.00028699,4]
[312289596,1705745438959,-241780.73471155,0.000287,2]
[312289598,1705745438968,-930.71828394,0.00028749,2]
[312289600,1705745438977,-38418.98198377,0.000288,2]
[312289602,1705745438990,-10048.14346439,0.000288,2]
[312289604,1705745439001,-15592.83824136,0.000288,2]
[312289606,1705745439012,-753.56966628,0.000288,2]
[312289608,1705745439024,-997.52299446,0.000288,2]
[312289661,1705745441127,-2403.12042989,0.00025175,3]
[312289687,1705745443073,-1016.97783291,0.00025175,3]
[312289850,1705745447043,-1535.2917372,0.00025175,3]
[312289852,1705745447053,-16212.34660228,0.000288,2]
[312289855,1705745447063,-3000.0,0.000288,3]
[312289856,1705745447072,-620.02932499,0.00028889,2]
[312289858,1705745447082,-3286.52869079,0.00028904,5]
[312289860,1705745447091,-154.70605849,0.00029,2]
[312289862,1705745447100,-1879.95128807,0.00029,2]
[312289864,1705745447109,-3482.62955366,0.00029202,2]
[312289866,1705745447118,-7640.62811996,0.000295,30]
[312289868,1705745447128,-200.0,0.0002971,15]
[312289870,1705745447136,-348.0,0.0002971,15]
[312289872,1705745447146,-304.34428653,0.00029799,3]
[312289874,1705745447155,-150.063,0.000298,2]
[312289876,1705745447165,-379.28469965,0.00029898,7]
[312289878,1705745447175,-763.70587335,0.000299,2]
[312289880,1705745447184,-3216.27669923,0.000299,2]
[312289882,1705745447193,-2267.295117,0.000299,2]
[312289883,1705745447203,-1586.07706038,0.00029998,2]
[312289885,1705745447213,-154.70606466,0.00029999,2]
[312289887,1705745447223,-154.76786674,0.00029999,2]
[312289889,1705745447235,-2261.81009154,0.0003,2]
[312289892,1705745447247,-2012.51861045,0.0003,2]
[312289971,1705746058439,6801.194489,0.00020004,120]
[312289972,1705746343100,-154.7215013,0.00019903,3]
[312289973,1705746343119,-1370.90874354,0.00019904,2]
[312289974,1705746343266,-1378.18226772,0.00020004,2]
[312289976,1705746538849,162.17736757,0.000189,2]
[312289990,1705746632191,-521.01151464,0.00020003,2]
[312289991,1705746632201,-705.35680047,0.00020004,2]
[312289992,1705746632211,-300.0,0.00020004,2]
[312289993,1705746632220,-1275.76049957,0.00020004,2]
[312289994,1705746632229,-834.7768658,0.00020004,2]
[312289995,1705746632238,-509.13299789,0.00020005,2]
[312289996,1705746632254,-690.26284118,0.00020005,2]
[312289997,1705746632263,-154.70605849,0.00020999,4]
[312289998,1705746632272,-1055.78630263,0.00021,2]
[312290023,1705746638373,-708.5416032,0.00021,2]
[312290024,1705746638383,-170.093981,0.00021901,2]
[312290025,1705746638392,-166.666666,0.00021918,2]
[312290026,1705746638401,-3966.85623058,0.00022,2]
[312290027,1705746638411,-200.0,0.00022003,7]
[312290028,1705746638420,-166.666666,0.00022433,2]
[312290029,1705746638429,-166.666666,0.00022947,2]
[312290030,1705746638438,-1570.89243892,0.00023,2]
[312290031,1705746638450,-166.666666,0.00023462,2]
[312290032,1705746638459,-162.17736757,0.000239,2]
[312290033,1705746638469,-166.666666,0.00023977,2]
[312290034,1705746638480,-2436.24851312,0.00024,2]
[312290035,1705746638492,-1576.31097248,0.00024,2]
[312290036,1705746638502,-280.0,0.00024204,7]
[312290037,1705746638512,-166.666666,0.00024492,2]
[312290038,1705746638521,-17333.90913174,0.00024556,2]
[312290089,1705746643693,-7566.09086826,0.00024556,2]
[312290090,1705746643703,-170.066696,0.00024564,2]
[312290092,1705746643712,-4721.06450288,0.00025,2]
[312290094,1705746643721,-1045.90652664,0.00026623,2]
[312290096,1705746643730,-391.0,0.00026624,15]
[312290098,1705746643739,-154.7215013,0.00026998,2]
[312290100,1705746643748,-4989.53,0.00027677,3]
[312290102,1705746643757,-4157.94,0.00027677,3]
[312290103,1705746643766,-470.52459336,0.00027685,2]
[312290105,1705746643775,-26367.42878889,0.00027687,5]
[312290273,1705746647334,836.63110436,0.000189,2]
[312290274,1705746667536,2083.53906819,0.0002,2]
[312290275,1705746667884,300.0,0.0002,2]
[312290276,1705746683528,2083.53906819,0.0002,2]
[312290277,1705746689886,300.0,0.0002,2]
[312290278,1705746698417,1351.60839685,0.0002,5]
[312290279,1705746701519,2083.53906819,0.0002,2]
[312290280,1705746707893,300.0,0.0002,2]
[312290281,1705746719522,2083.53906819,0.0002,2]
[312290282,1705746725886,300.0,0.0002,2]
[312290283,1705746735525,1083.30616794,0.0002,2]
[312290284,1705746743888,300.0,0.0002,2]
[312290285,1705746761890,300.0,0.0002,2]
[312290286,1705746781886,300.0,0.0002,2]
[312290287,1705747597086,-154.70605849,0.00023584,4]
[312290288,1705747597106,-157.81903389,0.00023585,2]
[312290330,1705747832818,-154.70605849,0.00021484,2]
[312290331,1705747832828,-150.0,0.00021485,2]
[312290332,1705747832838,-170.066696,0.00022125,2]
[312290333,1705747832847,-3966.85623058,0.00023216,2]
[312290334,1705747832856,-1570.89243892,0.00023217,2]
[312290335,1705747832865,-24900.0,0.00023218,2]
[312290336,1705747832875,-1764.32790583,0.00023575,2]
[312290337,1705747832885,-154.70605849,0.00023585,2]
[312290338,1705747832894,-1825.35938733,0.00023585,2]
[312290339,1705747832905,-521.01151464,0.0002359,2]
[312290340,1705747832914,-166.666666,0.00023591,2]
[312290341,1705747832923,-154.70605849,0.00023925,4]
[312290342,1705747832933,-170.08034,0.00023926,2]
[312290343,1705747832942,-166.666666,0.00024234,2]
[312290344,1705747832952,-166.666666,0.00024878,2]
[312290345,1705747832961,-4012.5594856,0.00024999,2]
[312290346,1705747832970,-4721.06450288,0.00025,2]
[312290347,1705747832979,-1045.90652664,0.00025,2]
[312290348,1705747832988,-156.78822437,0.00025421,2]
[312290349,1705747832999,-166.666666,0.00025521,2]
[312290350,1705747833009,-200.0,0.00025945,7]
[312290351,1705747833018,-166.666666,0.00026164,2]
[312290352,1705747833027,-166.666666,0.00026807,2]
[312290353,1705747833037,-1112.81666709,0.00026998,2]
[312290354,1705747833047,-208.4755949,0.0002726,2]
[312290355,1705747833057,-150.0,0.00027435,2]
[312290356,1705747833066,-153.0,0.00027671,2]
[312290357,1705747833075,-199.0990555,0.00027671,2]
[312290358,1705747833084,-156.5731179,0.00027671,2]
[312290359,1705747833094,-170.8109915,0.00027671,2]
[312290360,1705747833104,-308.5597583,0.00027671,2]
[312290361,1705747833113,-153.2749664,0.00027671,2]
[312290362,1705747833122,-199.0990555,0.00027671,2]
[312290363,1705747833131,-153.0,0.00027671,2]
[312290364,1705747833140,-153.0,0.00027671,2]
[312290365,1705747833149,-199.0990555,0.00027671,2]
[312290366,1705747833158,-199.0990555,0.00027671,2]
[312290367,1705747833168,-418.0246281,0.00027671,2]
[312290368,1705747833177,-3835.09,0.00027677,3]
[312290369,1705747833187,-5987.86,0.00027677,3]
[312290370,1705747833196,-4989.88,0.00027677,3]
[312290371,1705747833208,-199.0990555,0.00027678,2]
[312290372,1705747833218,-9230.57930336,0.00027687,5]
[312290384,1705747838529,-4158.23,0.00027677,3]
[312290385,1705747838538,-5128.89710568,0.00027687,5]
[312290400,1705747841445,-1270.97315113,0.00027687,5]
[312290402,1705747841457,-4557.44231904,0.00027687,5]
[312290564,1705747843429,-907.62073107,0.00027687,5]
[312290607,1705747846550,-154.70605849,0.00026998,4]
[312290608,1705747846560,-275.18010616,0.00026998,2]
[312290609,1705747846569,-2537.05860083,0.00027687,5]
[312290610,1705747846579,-410.41281499,0.00028,2]
[312290611,1705747846589,-290.16476431,0.00028,2]
[312290612,1705747846598,-280.0,0.00028539,15]
[312290614,1705747846607,-620.00146625,0.00028816,2]
[312290615,1705747846616,-154.73694719,0.00029,2]
[312290618,1705747846636,-155.0,0.00029,2]
[312290620,1705747846647,-1879.95128807,0.00029697,2]
[312290622,1705747846657,-2916.67795371,0.00029698,2]
[312290644,1705748276371,-154.70605849,0.00020999,4]
[312290645,1705748276396,-260.66256875,0.00020999,7]
[312290646,1705748276422,-3985.85939805,0.00021,2]
[312290647,1705748833083,-786.25167679,0.00021994,2]
[312290648,1705748846084,-978.07622904,0.00021994,2]
[312290649,1705748846105,-154.69061876,0.00021995,4]
[312290650,1705748846125,-779.25459508,0.00021995,2]
[312290651,1705748944534,199.42215689,0.00019895,2]
[312290714,1705749041737,-1197.48170656,0.00021991,2]
[312290715,1705749041746,-7912.74403247,0.00021992,2]
[312290716,1705749041757,-44.95177971,0.00021992,2]
[312290717,1705749041766,-70.7137329,0.00021995,2]
[312290718,1705749041775,-1703.54992818,0.00021995,2]
[312290719,1705749041800,-121.80945915,0.00021995,2]
[312290720,1705749041810,-166.666666,0.00021996,2]
[312290721,1705749041820,-293.17583958,0.00022,4]
[312290722,1705749041828,-3966.85623058,0.00022,2]
[312290723,1705749041838,-166.666666,0.00022595,2]
[312290724,1705749041847,-154.69061876,0.0002288,4]
[312290725,1705749041856,-24900.0,0.00022881,2]
[312290726,1705749041864,-165.124686,0.0002291,2]
[312290727,1705749041873,-1570.89243892,0.00023,2]
[312290728,1705749041887,-166.666666,0.00023195,2]
[312290729,1705749041897,-155.51025165,0.00023585,2]
[312290730,1705749041906,-166.666666,0.00023795,2]
[312290731,1705749041916,-166.666666,0.00024394,2]
[312290732,1705749041926,-199.42215689,0.00024895,2]
[312290733,1705749041935,-166.666666,0.00024994,2]
[312290734,1705749041945,-1739.96410283,0.00025,2]
[312290735,1705749041954,-18876.85769974,0.00025,2]
[312290736,1705749041964,-1001.87795597,0.00025,2]
[312290737,1705749041974,-1045.90652664,0.00025,2]
[312290738,1705749041982,-200.0,0.00025166,7]
[312290739,1705749041991,-2671.1,0.00025277,3]
[312290740,1705749042000,-9286.90575802,0.00025297,2]
[312290741,1705749042009,-241.17116876,0.00026,2]
[312290742,1705749042020,-1764.32790583,0.00027681,2]
[312290743,1705749042029,-280.0,0.00027682,15]
[312290744,1705749042038,-312.99786489,0.00028,7]
[312290745,1705749042047,-4012.5594856,0.0002841,2]
[312290746,1705749042059,-339.53070289,0.00028498,2]
[312290747,1705749042070,-12709.64644673,0.00028749,2]
[312290748,1705749042079,-165.016431,0.00028767,2]
[312290749,1705749042088,-155.00310006,0.00028798,2]
[312290750,1705749042097,-3971.54765019,0.00028798,2]
[312290787,1705749043639,-3611.9241518,0.00028798,2]
[312290788,1705749043650,-260.66256875,0.00028798,7]
[312290789,1705749043660,-687.4903872,0.00028798,2]
[312290790,1705749043669,-678.68190096,0.00028798,2]
[312290791,1705749043678,-425.80364021,0.00028798,2]
[312290792,1705749043688,-155.00620012,0.00028799,2]
[312290793,1705749043697,-166.88,0.00028799,2]
[312290794,1705749043706,-188.5075441,0.000288,3]
[312290795,1705749043716,-11446.7626119,0.000288,2]
[312290806,1705749047173,-5024.48534544,0.000288,2]
[312290807,1705749054273,1825.35938733,0.00021,2]
[312290808,1705749072293,1825.35938733,0.00021,2]
[312290809,1705749088279,1825.35938733,0.00021,2]
[312290810,1705749108299,1825.35938733,0.00021,2]
[312290812,1705749130284,1402.74951909,0.00021,2]
[312290816,1705749791921,1378.18226772,0.00021,2]
[312290823,1705749931091,-154.69061876,0.00025547,4]
[312290824,1705749931110,-1045.90652664,0.00025547,2]
[312290825,1705749931136,-1570.89243892,0.00025548,2]
[312290826,1705749931165,-132.32292824,0.00025549,2]
[312290833,1705750098968,-154.69061876,0.00025455,4]
[312290834,1705750098997,-166.666666,0.00025456,2]
[312290835,1705750099023,-763.70587335,0.00025549,2]
[312290836,1705750099050,-1238.5858153,0.00025549,2]
[312290837,1705750099076,-170.066696,0.00025711,2]
[312290838,1705750099105,-773.28433059,0.00026128,2]
[312290879,1705750231761,-154.69061876,0.00024027,4]
[312290882,1705750231771,-150.0,0.00024028,2]
[312290884,1705750231781,-156.78822438,0.0002605,3]
[312290886,1705750231790,-1570.89243892,0.00026127,2]
[312290888,1705750231799,-763.70587335,0.00026128,2]
[312290890,1705750231808,-2571.92739613,0.00026129,2]
[312291090,1705750240886,-2694.23789085,0.00026129,2]
[312291091,1705750240898,-772.32584,0.00026129,2]
[312291092,1705750240909,-550.74291153,0.00026129,2]
[312291093,1705750240920,-1000.0114866,0.00026129,2]
[312291098,1705750242890,-356.84827244,0.00026129,2]
[312291193,1705750303366,-293.14605446,0.00022,4]
[312291208,1705751215088,-154.69061876,0.00024354,4]
[312291209,1705751215108,-157.83710897,0.00024354,2]
[312291229,1705751431947,-154.69061876,0.00024352,4]
[312291232,1705751431958,-2001.92927764,0.00024353,2]
[312291233,1705751431967,-561.59426562,0.00024354,2]
[312291394,1705751441191,-851.46106433,0.00024354,2]
[312291395,1705751441200,-166.26169,0.00024357,2]
[312291396,1705751441209,-1666.4442918,0.00024759,2]
[312291397,1705751441221,-14396.8152455,0.00024759,2]
[312291398,1705751441233,-304.66716969,0.00024759,2]
[312291399,1705751441244,-3832.34728723,0.00024759,2]
[312291400,1705751441257,-1585.09106978,0.00024759,2]
[312291402,1705751443553,-166.666666,0.00024169,2]
[312291403,1705751443563,-1409.7786283,0.00024759,2]
[312291408,1705751446098,-472.55486556,0.00024759,2]
[312291416,1705751666423,4791.46238905,0.0001,2]
[312291423,1705751909053,154.69061876,0.0001,2]
[312291428,1705752443095,-786.25167679,0.00023349,2]
[312291429,1705752454104,-849.96832798,0.00023348,2]
[312291430,1705752454124,-1062.0531149,0.00023349,2]
[312291614,1705752638605,-824.03065617,0.00022797,2]
[312291615,1705752638614,-154.69061876,0.00022797,2]
[312291616,1705752638624,-154.69061876,0.00022798,4]
[312291617,1705752638633,-1197.48170656,0.00022798,2]
[312291618,1705752638643,-1764.32790583,0.00022798,2]
[312291619,1705752638653,-166.666666,0.00022801,2]
[312291620,1705752638662,-23051.69520831,0.00023349,2]
[312291621,1705752638671,-166.666666,0.00023422,2]
[312291622,1705752638680,-166.666666,0.00024044,2]
[312291623,1705752638690,-194.74040333,0.00024253,2]
[312291624,1705752638699,-166.666666,0.00024665,2]
[312291625,1705752638708,-170.066696,0.00024762,2]
[312291626,1705752638718,-9846.01,0.00025263,3]
[312291627,1705752638727,-155.16885659,0.00025271,2]
[312291628,1705752638736,-187.36939132,0.00025271,2]
[312291629,1705752638746,-193.30440341,0.00025271,2]
[312291630,1705752638756,-155.5855391,0.00025271,2]
[312291631,1705752638765,-874.04705685,0.00025271,2]
[312291632,1705752638774,-470.52459336,0.00025271,2]
[312291633,1705752638784,-1581.76828075,0.00025271,2]
[312291634,1705752638793,-429.27955469,0.00025271,2]
[312291635,1705752638802,-157.94908362,0.00025272,2]
[312291636,1705752638811,-272.47884373,0.00025272,2]
[312291637,1705752638820,-50000.0,0.00025273,2]
[312291638,1705752638829,-166.666666,0.00025287,2]
[312291639,1705752638838,-193.9845979,0.00025479,2]
[312291640,1705752638847,-166.666666,0.00025909,2]
[312291641,1705752638856,-200.0,0.00026113,7]
[312291642,1705752638865,-763.70587335,0.00026129,2]
[312291643,1705752638875,-5996.31350174,0.00026129,7]
[312291644,1705752638884,-500.02871877,0.00027014,5]
[312291645,1705752638893,-2338.29364155,0.00027014,2]
[312291646,1705752638902,-1235.995157,0.00027014,2]
[312291647,1705752638911,-1235.995157,0.00027014,2]
[312291648,1705752638920,-151.0,0.00027014,2]
[312291649,1705752638929,-151.0,0.00027014,2]
[312291650,1705752638938,-150.0,0.00027953,2]
[312291651,1705752638947,-291.91809303,0.00028,2]
[312291652,1705752638956,-305.59076867,0.00028,2]
[312291653,1705752638965,-4117.14427366,0.00028,2]
[312291654,1705752638974,-1235.995157,0.00028,2]
[312291655,1705752638984,-1235.995157,0.00028,2]
[312291656,1705752638993,-151.0,0.00028,2]
[312291657,1705752639002,-151.0,0.00028,2]
[312291658,1705752639012,-151.0,0.00028,2]
[312291659,1705752639021,-151.0,0.00028,2]
[312291660,1705752639030,-6113.899472,0.00028,2]
[312291661,1705752639039,-6113.899472,0.00028,2]
[312291662,1705752639048,-151.0,0.00028,2]
[312291663,1705752639061,-151.0,0.00028,2]
[312291664,1705752639070,-151.0,0.00028,2]
[312291665,1705752639079,-244.658736,0.00028,2]
[312291666,1705752639088,-2243.727834,0.00028,2]
[312291667,1705752639098,-2243.727834,0.00028,2]
[312291668,1705752639107,-2243.727834,0.00028,2]
[312291669,1705752639116,-2243.727834,0.00028,2]
[312291670,1705752639126,-2243.727834,0.00028,2]
[312291671,1705752639135,-2243.727834,0.00028,2]
[312291672,1705752639145,-151.0,0.00028152,2]
[312291673,1705752639154,-151.0,0.00028152,2]
[312291674,1705752639163,-151.0,0.00028152,2]
[312291675,1705752639172,-151.0,0.00028152,2]
[312291676,1705752639182,-6113.899472,0.00028152,2]
[312291677,1705752639191,-6113.899472,0.00028152,2]
[312291678,1705752639200,-151.0,0.00028152,2]
[312291679,1705752639209,-151.0,0.00028152,2]
[312291680,1705752639218,-151.0,0.00028152,2]
[312291681,1705752639227,-2243.727834,0.00028152,2]
[312291682,1705752639236,-2243.727834,0.00028152,2]
[312291683,1705752639245,-2243.727834,0.00028152,2]
[312291684,1705752639254,-2243.727834,0.00028152,2]
[312291685,1705752639263,-2243.727834,0.00028152,2]
[312291686,1705752639272,-2243.727834,0.00028152,2]
[312291687,1705752639282,-2243.727834,0.00028152,2]
[312291688,1705752639291,-2243.727834,0.00028152,2]
[312291689,1705752639300,-2718.21416202,0.00028152,2]
[312291690,1705752639309,-964.32268771,0.00028408,2]
[312291691,1705752639318,-500.0,0.00028435,2]
[312291692,1705752639327,-514.63657467,0.00028435,2]
[312291693,1705752639336,-500.0,0.00028435,2]
[312291694,1705752639345,-624.27284337,0.00028435,2]
[312291695,1705752639354,-500.0,0.00028435,2]
[312291696,1705752639362,-500.0,0.00028435,2]
[312291697,1705752639371,-414.36303215,0.00028435,2]
[312291698,1705752639381,-158.64640597,0.00028435,2]
[312291699,1705752639390,-500.0,0.00028435,2]
[312291700,1705752639400,-500.0,0.00028435,2]
[312291701,1705752639409,-266.46637967,0.00028435,2]
[312291702,1705752639418,-500.0,0.00028435,2]
[312291703,1705752639427,-188.50754412,0.00028436,3]
[312291704,1705752639436,-151.0,0.00028436,2]
[312291705,1705752639445,-151.0,0.00028436,2]
[312291706,1705752639454,-1235.995157,0.00028436,2]
[312291707,1705752639463,-1235.995157,0.00028436,2]
[312291708,1705752639472,-151.0,0.00028436,2]
[312291709,1705752639481,-151.0,0.00028436,2]
[312291710,1705752639490,-151.0,0.00028436,2]
[312291711,1705752639610,-151.0,0.00028436,2]
[312291712,1705752639619,-6113.899472,0.00028436,2]
[312291713,1705752639628,-6113.899472,0.00028436,2]
[312291714,1705752639637,-151.0,0.00028436,2]
[312291715,1705752639647,-151.0,0.00028436,2]
[312291716,1705752639656,-151.0,0.00028436,2]
[312291717,1705752639665,-2243.727834,0.00028436,2]
[312291718,1705752639677,-2243.727834,0.00028436,2]
[312291719,1705752639688,-2243.727834,0.00028436,2]
[312291720,1705752639697,-2243.727834,0.00028436,2]
[312291721,1705752639706,-2243.727834,0.00028436,2]
[312291722,1705752639715,-2243.727835,0.00028436,2]
[312291723,1705752639724,-1381.85597436,0.00028436,2]
[312291724,1705752639733,-158.00349204,0.00028437,2]
[312291725,1705752639743,-475.68781302,0.00028588,2]
[312291726,1705752639752,-436.74078263,0.00028588,4]
[312291727,1705752639761,-500.0,0.00028588,4]
[312291728,1705752639770,-381.47122728,0.00028588,4]
[312291729,1705752639779,-486.31791544,0.00028588,4]
[312291730,1705752639789,-183.63660889,0.00028588,4]
[312291731,1705752639798,-245604.95131834,0.00028589,2]
[312291732,1705752639807,-151.0,0.00028689,2]
[312291733,1705752639816,-151.0,0.00028689,2]
[312291734,1705752639826,-6113.899472,0.00028689,2]
[312291735,1705752639834,-151.0,0.0002869,2]
[312291736,1705752639843,-151.0,0.0002869,2]
[312291737,1705752639852,-1235.995157,0.0002869,2]
[312291738,1705752639862,-226.26408256,0.0002869,2]
[312291739,1705752639874,-1009.73107444,0.0002869,2]
[312291740,1705752639884,-1235.995157,0.0002869,2]
[312291741,1705752639894,-832.64746926,0.0002869,2]
[312291742,1705752639906,-403.34768774,0.0002869,2]
[312291743,1705752639915,-151.0,0.0002869,2]
[312291744,1705752639925,-151.0,0.0002869,2]
[312291745,1705752639935,-151.0,0.0002869,2]
[312291746,1705752639944,-174.910141,0.0002869,2]
[312291747,1705752639953,-890.36847056,0.0002869,2]
[312291762,1705752641330,-752.64566496,0.0002869,2]
[312291882,1705753552095,-154.67518212,0.00021879,4]
[312291883,1705753552114,-154.67518212,0.00021881,2]
[312291884,1705753552135,-164.5326913,0.00021882,2]
[312291885,1705753552155,-293.14605446,0.00022,4]
[312291886,1705753552174,-166.666666,0.00024634,2]
[312291887,1705753552194,-1979.39759009,0.00024936,2]
[312291974,1705753832330,-154.67518212,0.00022442,4]
[312291976,1705753832340,-170.08034,0.00023734,2]
[312291978,1705753832350,-156.78822437,0.000249,2]
[312291980,1705753832360,-1987.45864049,0.00024936,2]
[312291982,1705753832369,-156.6221118,0.00024936,2]
[312291983,1705753832378,-4012.5594866,0.00024937,2]
[312291985,1705753832386,-24900.0,0.00024938,2]
[312291987,1705753832395,-1045.90652664,0.00025,2]
[312291989,1705753832405,-4721.06450288,0.00025,2]
[312291991,1705753832413,-5109.5406045,0.00025156,2]
[312291993,1705753832423,-166.666666,0.00025305,2]
[312291995,1705753832432,-1112.81666709,0.00025828,2]
[312291996,1705753832441,-166.666666,0.00025977,2]
[312291997,1705753832450,-166.666666,0.00026648,2]
[312291998,1705753832459,-164.652142,0.00026846,2]
[312291999,1705753832469,-1570.89243892,0.0002686,2]
[312292000,1705753832479,-166.666666,0.0002732,2]
[312292001,1705753832492,-200.0,0.0002743,15]
[312292002,1705753832501,-3956.89,0.0002798,3]
[312292003,1705753832511,-1477.15530268,0.0002799,3]
[312292004,1705753832523,-5659.09505119,0.0002799,3]
[312292043,1705753838411,-166.666666,0.00027992,2]
[312292044,1705753838420,-290.16476431,0.00028,2]
[312292045,1705753838429,-419.50806652,0.00028,2]
[312292046,1705753838441,-672.68140241,0.00028,2]
[312292047,1705753838521,-45974.31346119,0.00028,2]
[312292048,1705753838534,-6549.6706209,0.00028,2]
[312292054,1705753841507,-1183.44611609,0.00028,2]
[312292056,1705753841520,-559.20607131,0.00028,3]
[312292059,1705753841534,-212.05458319,0.0002815,2]
[312292061,1705753841548,-840.95457843,0.00028151,2]
[312292063,1705753841560,-199.0990555,0.00028493,2]
[312292066,1705753841573,-199.0990555,0.00028493,2]
[312292068,1705753841586,-6356.15,0.00028689,3]
[312292070,1705753841597,-763.70587335,0.0002869,2]
[312292072,1705753841609,-512.74804687,0.0002869,2]
[312293756,1705754806224,-154.73694719,0.00024362,4]
[312293757,1705754806246,-157.79385169,0.00024363,2]
[312293816,1705755034937,-154.73694719,0.00021925,4]
[312293818,1705755034946,-1764.32790583,0.00022262,2]
[312293820,1705755034957,-1568.09454958,0.00022263,2]
[312293822,1705755034967,-250.0,0.00023608,2]
[312293824,1705755034976,-156.78822437,0.00024286,2]
[312293826,1705755034985,-521.01151464,0.00024361,2]
[312293828,1705755034995,-1825.35938733,0.00024363,2]
[312293830,1705755035004,-17405.78921147,0.00024363,2]
[312293831,1705755035017,-6309.44940578,0.00024363,2]
[312293881,1705755040103,-418.79956722,0.00024363,2]
[312293890,1705755041675,-608.16796384,0.00024363,2]
[312293891,1705755041685,-166.666666,0.0002475,2]
[312293892,1705755041694,-158.78714545,0.00024936,2]
[312293893,1705755041703,-150.24,0.00024936,2]
[312293894,1705755041713,-995.12127612,0.00025,2]
[312293895,1705755041730,-2865.96798219,0.00025,2]
[312293913,1705755043606,-859.97524457,0.00025,2]
[312293914,1705755043616,-166.666666,0.00025425,2]
[312293916,1705755043626,-1226.0,0.000259,2]
[312293917,1705755043635,-157.83710897,0.00025979,2]
[312293918,1705755043645,-167.968302,0.00026022,2]
[312293919,1705755043654,-166.666666,0.000261,2]
[312293920,1705755043663,-166.666666,0.00026775,2]
[312293921,1705755043674,-3719.4113901,0.00027219,2]
[312293985,1705756050109,-786.25167679,0.00023862,2]
[312293986,1705756051106,-978.07622904,0.00023862,2]
[312293987,1705756051127,-154.73694719,0.00023863,4]
[312293988,1705756051148,-779.20826665,0.00023863,2]
[312294026,1705756237934,-154.73694719,0.00021762,4]
[312294027,1705756237943,-1045.39636639,0.00021763,2]
[312294028,1705756237952,-1570.89243892,0.00023,2]
[312294029,1705756237961,-166.666666,0.00023447,2]
[312294030,1705756237972,-1581.76828075,0.00023531,2]
[312294031,1705756237984,-2338.29364155,0.00023532,2]
[312294032,1705756237993,-1109.3928185,0.00023863,2]
[312294033,1705756238002,-154.73694719,0.00023863,2]
[312294034,1705756238011,-1168.83245778,0.00023863,2]
[312294036,1705756240904,-106.47730767,0.00023863,2]
[312294037,1705756240913,-166.666666,0.00024086,2]
[312294038,1705756240924,-245.889931,0.00024242,2]
[312294039,1705756240933,-166.666666,0.00024725,2]
[312294040,1705756240942,-1798.45558324,0.00024772,2]
[312294041,1705756240951,-24900.0,0.00024773,2]
[312294042,1705756240960,-155.6149417,0.0002486,2]